bitfinex-derivatives/quotes_BTCF0:USTF0_20250426
["timestamp","ask_amount","ask_price","bid_price","bid_amount"]
[1745664546213,0.2647225,94410.0,94409.0,0.2117754]
[1745664546514,0.4947225,94410.0,94409.0,0.2117754]
[1745664547111,0.6627225,94410.0,94409.0,0.2117754]
[1745664547308,0.7274225,94410.0,94409.0,0.2117754]
[1745664548521,0.7274225,94410.0,94409.0,0.2137754]
[1745664549316,0.7274225,94410.0,94409.0,0.2450754]
[1745664552427,0.7274225,94410.0,94409.0,0.2430754]
[1745664552721,0.7284225,94410.0,94409.0,0.2430754]
[1745664566823,0.2117786,94409.0,94407.0,0.00805234]
[1745664567025,0.32,94409.0,94389.0,0.3608]
[1745664567321,0.2118437,94379.0,94378.0,0.2648008]
[1745664567526,0.6426437,94379.0,94378.0,0.27293205]
[1745664567720,0.4308,94379.0,94378.0,0.27293205]
[1745664567918,0.4308,94379.0,94378.0,0.33453205]
[1745664568130,0.6729437,94379.0,94378.0,0.33453205]
[1745664568718,0.6729437,94379.0,94378.0,0.33553205]
[1745664570228,0.8409437,94379.0,94378.0,0.33553205]
[1745664570822,0.5988,94379.0,94378.0,0.33553205]
[1745664572226,0.4308,94379.0,94378.0,0.33553205]
[1745664572824,0.6426437,94379.0,94378.0,0.33553205]
[1745664573224,0.8106437,94379.0,94378.0,0.33553205]
[1745664579025,0.5988,94379.0,94378.0,0.33553205]
[1745664579532,0.238,94379.0,94378.0,0.33553205]
[1745664579829,0.5988,94379.0,94378.0,0.33553205]
[1745664581521,0.238,94379.0,94378.0,0.33553205]
[1745664581725,0.5988,94379.0,94378.0,0.33553205]
[1745664585138,0.4308,94379.0,94378.0,0.33553205]
[1745664585336,0.3608,94379.0,94378.0,0.33553205]
[1745664587536,0.562,94380.0,94379.0,0.2118437]
[1745664587730,0.5288,94380.0,94379.0,0.2756437]
[1745664588737,0.5288,94380.0,94379.0,0.2766437]
[1745664590734,0.168,94380.0,94379.0,0.2766437]
[1745664590931,0.5288,94380.0,94379.0,0.2766437]
[1745664591723,0.168,94380.0,94379.0,0.2766437]
[1745664592231,0.3608,94383.0,94382.0,0.2118369]
[1745664593031,0.3608,94383.0,94382.0,0.2731369]
[1745664595027,0.3708,94383.0,94382.0,0.2731369]
[1745664598143,0.5388,94383.0,94382.0,0.2731369]
[1745664599134,0.3708,94383.0,94382.0,0.2731369]
[1745664604651,0.3708,94383.0,94382.0,0.2429369]
[1745664608141,0.01,94383.0,94382.0,0.2429369]
[1745664608342,0.3708,94383.0,94382.0,0.2429369]
[1745664609163,0.4345,94383.0,94382.0,0.2429369]
[1745664610249,0.0737,94383.0,94382.0,0.2429369]
[1745664610558,0.4345,94383.0,94382.0,0.2429369]
[1745664615761,0.0737,94383.0,94382.0,0.2429369]
[1745664616054,0.4345,94383.0,94382.0,0.2429369]
[1745664617859,0.0737,94383.0,94382.0,0.2429369]
[1745664618156,0.4345,94383.0,94382.0,0.2429369]
[1745664619562,0.00083,94392.0,94388.0,0.2118235]
[1745664619563,0.0323,94389.0,94388.0,0.2118235]
[1745664619747,0.00083,94392.0,94391.0,0.2118168]
[1745664619946,0.01,94392.0,94391.0,0.2118168]
[1745664620354,0.0415,94392.0,94391.0,0.2118168]
[1745664620955,0.0435,94392.0,94391.0,0.2118168]
[1745664622557,0.012,94392.0,94391.0,0.2118168]
[1745664622758,0.002,94392.0,94391.0,0.2118168]
[1745664623149,0.002,94392.0,94391.0,0.3798168]
[1745664623559,0.002,94392.0,94391.0,0.39635252]
[1745664623759,0.0956,94392.0,94391.0,0.39635252]
[1745664624252,0.0956,94392.0,94391.0,0.22835252]
[1745664624453,0.1036,94392.0,94391.0,0.22835252]
[1745664625163,0.2716,94392.0,94391.0,0.22835252]
[1745664626162,0.1036,94392.0,94391.0,0.22835252]
[1745664626558,0.1046,94392.0,94391.0,0.22835252]
[1745664627166,0.1036,94392.0,94391.0,0.22835252]
[1745664627862,0.1036,94392.0,94391.0,0.22837449]
[1745664629267,0.2716,94392.0,94391.0,0.22837449]
[1745664630367,0.2616,94392.0,94391.0,0.22837449]
[1745664630566,0.3516,94392.0,94391.0,0.22837449]
[1745664630866,0.2118437,94379.0,94378.0,0.21997565]
[1745664631065,0.5726437,94379.0,94378.0,0.00813125]
[1745664631362,0.2118527,94375.0,94370.0,0.00105965]
[1745664631563,0.4218527,94375.0,94374.0,0.37412881]
[1745664631869,0.21,94375.0,94374.0,0.37412881]
[1745664632067,0.378,94375.0,94374.0,0.37412881]
[1745664632656,0.378,94375.0,94374.0,0.2118549]
[1745664633164,0.378,94375.0,94374.0,0.21996085]
[1745664633367,0.4442,94375.0,94374.0,0.22196085]
[1745664638867,0.805,94375.0,94374.0,0.22196085]
[1745664642870,0.805,94375.0,94374.0,0.23814112]
[1745664645571,1.0168527,94375.0,94374.0,0.23814112]
[1745664645767,1.0168527,94375.0,94374.0,0.01010595]
[1745664645963,1.0168527,94375.0,94374.0,0.22196085]
[1745664647461,1.0168527,94375.0,94374.0,0.01010595]
[1745664647663,0.2118863,94362.0,94361.0,0.2118801]
[1745664647968,0.8726863,94362.0,94361.0,0.2118801]
[1745664648165,1.0406863,94362.0,94361.0,0.2118801]
[1745664648474,1.0406863,94362.0,94361.0,0.21963197]
[1745664648968,1.0720863,94362.0,94361.0,0.21963197]
[1745664649172,1.1031863,94362.0,94361.0,0.21963197]
[1745664653070,0.8913,94362.0,94361.0,0.24973197]
[1745664654071,1.1031818,94362.0,94361.0,0.24973197]
[1745664655366,0.8913,94362.0,94361.0,0.24973197]
[1745664655978,0.5305,94362.0,94361.0,0.24973197]
[1745664656167,0.8913,94362.0,94361.0,0.24973197]
[1745664656362,1.1031818,94362.0,94361.0,0.24973197]
[1745664658572,0.7423818,94362.0,94361.0,0.24973197]
[1745664658776,1.1031818,94362.0,94361.0,0.24973197]
[1745664659068,0.7423818,94362.0,94361.0,0.24973197]
[1745664659477,1.1031818,94362.0,94361.0,0.24973197]
[1745664666983,0.5988,94362.0,94361.0,0.24973197]
[1745664667179,0.5988,94362.0,94361.0,0.31513197]
[1745664667572,0.8088,94362.0,94361.0,0.28273197]
[1745664668184,0.841,94362.0,94361.0,0.28273197]
[1745664668886,1.0528818,94362.0,94361.0,0.28273197]
[1745664669776,0.6920818,94362.0,94361.0,0.28273197]
[1745664669976,1.0528818,94362.0,94361.0,0.28273197]
[1745664677893,1.0528818,94362.0,94361.0,0.29860031]
[1745664678979,1.0528818,94362.0,94361.0,0.29842014]
[1745664679585,0.6920818,94362.0,94361.0,0.29842024]
[1745664679789,1.0528818,94362.0,94361.0,0.29842024]
[1745664680082,1.0528818,94362.0,94361.0,0.28273197]
[1745664680675,1.0528818,94362.0,94361.0,0.24973197]
[1745664683291,1.0528818,94362.0,94361.0,0.21963197]
[1745664684793,0.0529714,94361.0,94356.0,0.2118953]
[1745664684981,0.2118931,94357.0,94356.0,0.2118953]
[1745664685182,0.0529782,94349.0,94343.0,0.0529809]
[1745664685387,0.21192,94346.0,94345.0,0.2966954]
[1745664685581,0.54192,94346.0,94345.0,0.2966954]
[1745664686179,1.07072,94346.0,94345.0,0.2966954]
[1745664686593,1.07072,94346.0,94345.0,0.2976954]
[1745664689190,1.07072,94346.0,94345.0,0.3055225]
[1745664690388,1.07072,94346.0,94345.0,0.2525426]
[1745664690591,1.07072,94346.0,94345.0,0.0406271]
[1745664690988,1.07072,94346.0,94345.0,0.2525471]
[1745664691295,1.07072,94346.0,94345.0,0.0406271]
[1745664691492,1.07072,94346.0,94345.0,0.0088271]
[1745664692587,0.2119223,94344.0,94343.0,0.0318]
[1745664692790,0.5419223,94344.0,94343.0,0.0318]
[1745664692997,0.5419223,94344.0,94343.0,0.2437245]
[1745664693294,0.7727223,94344.0,94343.0,0.2437245]
[1745664693885,1.4943223,94344.0,94343.0,0.2437245]
[1745664697292,1.4943223,94344.0,94343.0,0.2745245]
[1745664700701,1.1335223,94344.0,94343.0,0.2745245]
[1745664700906,1.4943223,94344.0,94343.0,0.2745245]
[1745664706402,0.7727223,94344.0,94343.0,0.2745245]
[1745664706598,1.4943223,94344.0,94343.0,0.2745245]
[1745664712218,1.3263223,94344.0,94343.0,0.2745245]
[1745664712616,0.6047223,94344.0,94343.0,0.2745245]
[1745664712913,1.3263223,94344.0,94343.0,0.2745245]
[1745664713118,1.4943223,94344.0,94343.0,0.2745245]
[1745664713310,0.7727223,94344.0,94343.0,0.2745245]
[1745664713510,1.4943223,94344.0,94343.0,0.2745245]
[1745664715433,1.3263223,94344.0,94343.0,0.2745245]
[1745664715931,0.6047223,94344.0,94343.0,0.2745245]
[1745664716130,1.4943223,94344.0,94343.0,0.2745245]
[1745664716918,0.7727223,94344.0,94343.0,0.2745245]
[1745664717130,1.3263223,94344.0,94343.0,0.2745245]
[1745664718620,0.8316,94344.0,94343.0,0.2745245]
[1745664719223,1.0435223,94344.0,94343.0,0.4425245]
[1745664720133,1.0435223,94344.0,94343.0,0.2745245]
[1745664720724,0.8316,94344.0,94343.0,0.2745245]
[1745664721135,0.8316,94344.0,94343.0,0.4425245]
[1745664723329,0.8316,94344.0,94343.0,0.2745245]
[1745664723833,1.0435223,94344.0,94343.0,0.2745245]
[1745664724026,0.8316,94344.0,94343.0,0.2745245]
[1745664724227,0.8316,94344.0,94343.0,0.4425245]
[1745664724429,0.4708,94344.0,94343.0,0.4425245]
[1745664725129,0.4708,94344.0,94343.0,0.45822691]
[1745664728334,0.4708,94344.0,94343.0,0.45857673]
[1745664730836,0.11,94344.0,94343.0,0.45857673]
[1745664731836,0.11,94344.0,94343.0,0.4425245]
[1745664732037,0.11,94344.0,94343.0,0.4585164]
[1745664738237,0.11,94344.0,94343.0,0.45862741]
[1745664741146,0.11,94344.0,94343.0,0.2745245]
[1745664742248,0.11,94344.0,94343.0,0.4425245]
[1745664743254,0.11,94344.0,94343.0,0.2745245]
[1745664745144,0.11,94344.0,94343.0,0.4425245]
[1745664745943,0.36107,94348.0,94347.0,0.2119155]
[1745664746145,0.37107,94348.0,94347.0,0.2119155]
[1745664746445,0.3608,94348.0,94347.0,0.2119155]
[1745664746842,0.3608,94348.0,94347.0,0.2756155]
[1745664747043,0.03237,94352.0,94347.0,0.2756155]
[1745664747248,0.08237,94352.0,94351.0,0.2119066]
[1745664747744,0.0821,94352.0,94351.0,0.2119066]
[1745664748543,0.0841,94352.0,94351.0,0.22397856]
[1745664749344,0.0841,94352.0,94351.0,0.25507856]
[1745664749747,0.4449,94352.0,94351.0,0.25507856]
[1745664750654,0.4449,94352.0,94351.0,0.2430066]
[1745664752956,0.4449,94352.0,94351.0,0.25507618]
[1745664754556,0.4449,94352.0,94351.0,0.2430066]
[1745664755957,0.4449,94352.0,94351.0,0.25497085]
[1745664757450,0.4449,94352.0,94351.0,0.2430066]
[1745664758643,0.0841,94352.0,94351.0,0.2430066]
[1745664758953,0.4449,94352.0,94351.0,0.2430066]
[1745664759650,0.0841,94352.0,94351.0,0.2430066]
[1745664759852,0.4449,94352.0,94351.0,0.2430066]
[1745664760849,0.0841,94352.0,94351.0,0.2430066]
[1745664761159,0.4449,94352.0,94351.0,0.2430066]
[1745664767748,0.4449,94352.0,94351.0,0.2731066]
[1745664768149,0.3949,94352.0,94351.0,0.2731066]
[1745664769059,0.3628,94352.0,94351.0,0.2731066]
[1745664770060,0.002,94352.0,94351.0,0.2731066]
[1745664781265,0.002,94352.0,94351.0,0.4411066]
[1745664781466,0.002,94352.0,94351.0,0.45689449]
[1745664782856,0.00027,94356.0,94355.0,0.2118976]
[1745664783057,0.00027,94356.0,94355.0,0.22768549]
[1745664783264,0.03,94357.0,94356.0,0.2118953]
[1745664783463,0.03,94357.0,94356.0,0.22768319]
[1745664783659,0.0661,94368.0,94356.0,0.22768319]
[1745664783861,0.0318,94367.0,94366.0,0.2118729]
[1745664784068,0.0318,94367.0,94366.0,0.22766079]
[1745664784069,0.1018,94367.0,94366.0,0.22766079]
[1745664784372,0.1341,94367.0,94366.0,0.2118729]
[1745664785170,0.1018,94367.0,94366.0,0.2118729]
[1745664785372,0.1018,94367.0,94366.0,0.22763946]
[1745664785572,0.1018,94367.0,94366.0,0.22768995]
[1745664786164,0.1048,94367.0,94366.0,0.23945359]
[1745664786771,0.1018,94367.0,94366.0,0.2396923]
[1745664787765,0.1028,94367.0,94366.0,0.2396923]
[1745664788662,0.1028,94367.0,94366.0,0.23967832]
[1745664789266,0.1028,94367.0,94366.0,0.40767832]
[1745664789768,0.1018,94367.0,94366.0,0.40767832]
[1745664790075,0.4626,94367.0,94366.0,0.40767832]
[1745664790562,0.4636,94367.0,94366.0,0.40767832]
[1745664791163,0.4636,94367.0,94366.0,0.23967832]
[1745664791673,0.4636,94367.0,94366.0,0.22791468]
[1745664791858,0.4944,94367.0,94366.0,0.22791468]
[1745664792369,0.4944,94367.0,94366.0,0.2118729]
[1745664792561,0.4934,94367.0,94366.0,0.2118729]
[1745664792866,0.4944,94367.0,94366.0,0.2118729]
[1745664794163,0.6624,94367.0,94366.0,0.2118729]
[1745664795767,0.8742706,94367.0,94366.0,0.2118729]
[1745664796360,0.8752706,94367.0,94366.0,0.2118729]
[1745664797366,0.6634,94367.0,94366.0,0.2118729]
[1745664801179,0.4954,94367.0,94366.0,0.2118729]
[1745664802174,0.6634,94367.0,94366.0,0.2118729]
[1745664803383,0.6624,94367.0,94366.0,0.2118729]
[1745664803684,0.3016,94367.0,94366.0,0.2118729]
[1745664803884,0.6634,94367.0,94366.0,0.2118729]
[1745664804178,0.4954,94367.0,94366.0,0.2118729]
[1745664805186,0.6634,94367.0,94366.0,0.2118729]
[1745664806082,0.4954,94367.0,94366.0,0.2118729]
[1745664806981,0.4954,94367.0,94366.0,0.2446729]
[1745664807989,0.4646,94367.0,94366.0,0.2446729]
[1745664808185,0.4328,94367.0,94366.0,0.2757729]
[1745664809576,0.4318,94367.0,94366.0,0.2757729]
[1745664810281,0.4308,94367.0,94366.0,0.2767729]
[1745664811082,0.4308,94367.0,94366.0,0.2757729]
[1745664812876,0.07,94367.0,94366.0,0.2757729]
[1745664813282,0.07,94367.0,94366.0,0.2767729]
[1745664815570,0.07,94367.0,94366.0,0.2757729]
[1745664815768,0.07,94367.0,94366.0,0.2767729]
[1745664818384,0.0228758,94367.0,94366.0,0.2767729]
[1745664818681,0.0312,94375.0,94374.0,0.2118549]
[1745664818981,0.0612,94375.0,94374.0,0.2118549]
[1745664819682,0.0612,94375.0,94374.0,0.2741549]
[1745664819884,0.0622,94375.0,94374.0,0.2741549]
[1745664822581,0.0927,94375.0,94374.0,0.2423549]
[1745664823083,0.2607,94375.0,94374.0,0.2423549]
[1745664823777,0.2627,94375.0,94374.0,0.2423549]
[1745664830385,0.6235,94375.0,94374.0,0.2423549]
[1745664833091,0.6215,94375.0,94374.0,0.2423549]
[1745664833290,0.6245,94375.0,94374.0,0.2423549]
[1745664833493,0.6245,94375.0,94374.0,0.2118549]
[1745664833996,0.2637,94375.0,94374.0,0.2118549]
[1745664834296,0.6245,94375.0,94374.0,0.2118549]
[1745664835592,0.2637,94375.0,94374.0,0.2118549]
[1745664840088,0.8145,94375.0,94374.0,0.2118549]
[1745664840292,1.0263527,94375.0,94374.0,0.2118549]
[1745664841699,0.8145,94375.0,94374.0,0.2118549]
[1745664845899,1.0263527,94375.0,94374.0,0.2118549]
[1745664847305,0.8145,94375.0,94374.0,0.2118549]
[1745664849501,0.783,94375.0,94374.0,0.2118549]
[1745664850094,0.7518,94375.0,94374.0,0.2118549]
[1745664851306,0.5838,94375.0,94374.0,0.2118549]
[1745664852106,0.7518,94375.0,94374.0,0.2118549]
[1745664853105,0.5838,94375.0,94374.0,0.2118549]
[1745664854907,0.223,94375.0,94374.0,0.2118549]
[1745664858105,0.391,94375.0,94374.0,0.2118549]
[1745664859202,0.223,94375.0,94374.0,0.2118549]
[1745664861901,0.5838,94375.0,94374.0,0.2118549]
[1745664862108,0.8139,94375.0,94374.0,0.2118549]
[1745664868408,0.4531,94375.0,94374.0,0.2118549]
[1745664868607,0.8139,94375.0,94374.0,0.2118549]
[1745664875419,0.4531,94375.0,94374.0,0.2118549]
[1745664875614,0.8139,94375.0,94374.0,0.2118549]
[1745664875811,0.7518,94375.0,94374.0,0.2118549]
[1745664876011,0.7030396,94375.0,94374.0,0.3118549]
[1745664876223,0.5350396,94375.0,94374.0,0.3118549]
[1745664876919,0.2661507,94375.0,94374.0,0.3118549]
[1745664877112,0.0324,94392.0,94391.0,0.2118168]
[1745664877317,0.3024,94392.0,94391.0,0.2118168]
[1745664877913,0.3024,94392.0,94391.0,0.2745168]
[1745664879617,0.3338,94392.0,94391.0,0.2745168]
[1745664880209,0.5018,94392.0,94391.0,0.2745168]
[1745664881913,0.5018,94392.0,94391.0,0.28245997]
[1745664883615,0.438,94392.0,94391.0,0.28245997]
[1745664884213,0.27,94392.0,94391.0,0.28245997]
[1745664884621,0.303,94392.0,94391.0,0.28245997]
[1745664887521,0.27,94392.0,94391.0,0.28245997]
[1745664889222,0.438,94392.0,94391.0,0.28245997]
[1745664890225,0.27,94392.0,94391.0,0.28245997]
[1745664895129,0.438,94392.0,94391.0,0.28245997]
[1745664897141,0.04,94392.0,94391.0,0.45045997]
[1745664898033,0.04,94392.0,94391.0,0.41995997]
[1745664898634,0.1014,94392.0,94391.0,0.41995997]
[1745664899243,0.2694,94392.0,94391.0,0.25195997]
[1745664899735,0.2704,94392.0,94391.0,0.25195997]
[1745664900137,0.2714,94392.0,94391.0,0.25195997]
[1745664907243,0.24,94392.0,94391.0,0.25195997]
[1745664907441,0.21,94392.0,94391.0,0.25195997]
[1745664908337,0.042,94392.0,94391.0,0.25195997]
[1745664909144,0.04,94392.0,94391.0,0.25195997]
[1745664911034,0.071,94392.0,94391.0,0.25195997]
[1745664912549,0.072,94392.0,94391.0,0.25195997]
[1745664915242,0.072,94392.0,94391.0,0.41995997]
[1745664916240,0.072,94392.0,94391.0,0.25195997]
[1745664918039,0.104,94392.0,94391.0,0.25195997]
[1745664920447,0.3158145,94392.0,94391.0,0.21975997]
[1745664920652,0.2758145,94392.0,94391.0,0.21975997]
[1745664920946,0.5058145,94392.0,94391.0,0.00794317]
[1745664921147,0.211828,94386.0,94385.0,0.0529571]
[1745664921340,0.421828,94386.0,94385.0,0.0529571]
[1745664921851,0.21,94386.0,94385.0,0.2647804]
[1745664922153,0.4408,94386.0,94385.0,0.2647804]
[1745664922545,0.4408,94386.0,94385.0,0.2657804]
[1745664923248,0.2728,94386.0,94385.0,0.2657804]
[1745664924551,0.2738,94386.0,94385.0,0.2647804]
[1745664925243,0.2738,94386.0,94385.0,0.27253846]
[1745664927147,0.3048,94386.0,94385.0,0.27253846]
[1745664938154,0.4728,94386.0,94385.0,0.27253846]
[1745664938546,0.684628,94386.0,94385.0,0.27253846]
[1745664938747,0.4728,94386.0,94385.0,0.27253846]
[1745664939155,0.684628,94386.0,94385.0,0.00775806]
[1745664939359,0.684628,94386.0,94385.0,0.2118302]
[1745664939548,0.2118572,94377.0,94376.0,0.2118384]
[1745664939754,0.9126572,94377.0,94376.0,0.2118384]
[1745664940750,0.9126572,94377.0,94376.0,0.2647994]
[1745664940952,0.9747572,94377.0,94376.0,0.2647994]
[1745664941155,1.1427572,94377.0,94376.0,0.2118384]
[1745664942156,1.1447572,94377.0,94376.0,0.2118384]
[1745664943548,1.1427572,94377.0,94376.0,0.2118384]
[1745664943752,1.1447572,94377.0,94376.0,0.2118384]
[1745664958856,0.7839572,94377.0,94376.0,0.2118384]
[1745664959162,1.1447572,94377.0,94376.0,0.2118384]
[1745664967270,0.9329,94377.0,94376.0,0.2118384]
[1745664967567,0.9012,94377.0,94376.0,0.2427384]
[1745664968168,1.1130482,94377.0,94376.0,0.2753384]
[1745664968364,1.1442482,94377.0,94376.0,0.2753384]
[1745664978271,1.1442482,94377.0,94376.0,0.2444384]
[1745664978475,1.1442482,94377.0,94372.0,0.21986169]
[1745664978476,0.2118572,94373.0,94372.0,0.21986169]
[1745664978673,0.5618572,94373.0,94372.0,0.2118584]
[1745664979379,0.7915572,94373.0,94372.0,0.2118584]
[1745664979789,0.7915572,94373.0,94372.0,0.21962807]
[1745664981075,0.7935572,94373.0,94372.0,0.21962807]
[1745664982275,1.1543572,94373.0,94372.0,0.21962807]
[1745664983680,1.1543572,94373.0,94372.0,0.25152807]
[1745664986574,0.7935572,94373.0,94372.0,0.25152807]
[1745664986777,1.1543572,94373.0,94372.0,0.25152807]
[1745664988277,0.7935572,94373.0,94372.0,0.25152807]
[1745664988685,1.1543572,94373.0,94372.0,0.25152807]
[1745664989478,0.7935572,94373.0,94372.0,0.25152807]
[1745664989674,1.1543572,94373.0,94372.0,0.25152807]
[1745664989874,1.1239572,94373.0,94372.0,0.25152807]
[1745664991282,0.9559572,94373.0,94372.0,0.25152807]
[1745664996178,0.9246572,94373.0,94372.0,0.25152807]
[1745664998082,1.0926572,94373.0,94372.0,0.25152807]
[1745664999082,0.9246572,94373.0,94372.0,0.25152807]
[1745665000177,1.0926572,94373.0,94372.0,0.25152807]
[1745665000389,0.7318572,94373.0,94372.0,0.25152807]
[1745665000582,1.0926572,94373.0,94372.0,0.25152807]
[1745665002485,0.7318572,94373.0,94372.0,0.25152807]
[1745665002683,1.0926572,94373.0,94372.0,0.25152807]
[1745665005292,0.9246572,94373.0,94372.0,0.25152807]
[1745665007983,0.5638572,94373.0,94372.0,0.25152807]
[1745665008184,0.9246572,94373.0,94372.0,0.25152807]
[1745665010786,0.5638572,94373.0,94372.0,0.25152807]
[1745665010990,0.9246572,94373.0,94372.0,0.25152807]
[1745665016192,0.9566572,94373.0,94372.0,0.25152807]
[1745665016890,0.9566572,94373.0,94372.0,0.21962807]
[1745665017198,1.1246572,94373.0,94372.0,0.21962807]
[1745665019299,0.9566572,94373.0,94372.0,0.21962807]
[1745665022203,1.1246572,94373.0,94372.0,0.21962807]
[1745665024092,0.9566572,94373.0,94372.0,0.21962807]
[1745665024693,0.9566572,94373.0,94372.0,0.25042807]
[1745665031198,0.9566572,94373.0,94372.0,0.41842807]
[1745665032192,0.9566572,94373.0,94372.0,0.25042807]
[1745665033100,1.1246572,94373.0,94372.0,0.21962907]
[1745665033303,1.1246572,94373.0,94372.0,0.00776967]
[1745665033509,0.2118639,94370.0,94367.0,0.0529676]
[1745665033699,0.2118796,94363.0,94362.0,0.00805101]
[1745665033893,0.0529731,94358.0,94350.0,0.16227391]
[1745665034202,0.2119043,94352.0,94351.0,0.2440048]
[1745665034400,0.9127043,94352.0,94351.0,0.2440048]
[1745665036203,0.9127043,94352.0,94351.0,0.2470048]
[1745665036702,0.9127043,94352.0,94351.0,0.2782048]
[1745665039027,0.9127043,94352.0,94351.0,0.2149048]
[1745665041402,0.9127043,94352.0,94351.0,0.2780048]
[1745665042112,0.9127043,94352.0,94351.0,0.4460048]
[1745665045408,0.5519043,94352.0,94351.0,0.4460048]
[1745665045613,0.9127043,94352.0,94351.0,0.4460048]
[1745665050814,0.5519043,94352.0,94351.0,0.4460048]
[1745665051045,0.9127043,94352.0,94351.0,0.4460048]
[1745665053509,0.5519043,94352.0,94351.0,0.4460048]
[1745665053811,0.9127043,94352.0,94351.0,0.4460048]
[1745665055007,0.5519043,94352.0,94351.0,0.4460048]
[1745665055314,0.9127043,94352.0,94351.0,0.4460048]
[1745665056619,0.9444043,94352.0,94351.0,0.4460048]
[1745665057559,0.9127043,94352.0,94351.0,0.4460048]
[1745665063325,0.9433043,94352.0,94351.0,0.4460048]
[1745665064420,0.5825043,94352.0,94351.0,0.4460048]
[1745665064620,0.9433043,94352.0,94351.0,0.4460048]
[1745665066516,0.5825043,94352.0,94351.0,0.4460048]
[1745665066720,0.9433043,94352.0,94351.0,0.4460048]
[1745665074430,0.5825043,94352.0,94351.0,0.4460048]
[1745665074635,0.9433043,94352.0,94351.0,0.4460048]
[1745665075428,0.5825043,94352.0,94351.0,0.4460048]
[1745665075633,0.9433043,94352.0,94351.0,0.4460048]
[1745665076135,0.9433043,94352.0,94351.0,0.2780048]
[1745665076536,0.5825043,94352.0,94351.0,0.2780048]
[1745665077032,0.9433043,94352.0,94351.0,0.2780048]
[1745665077236,0.9433043,94352.0,94351.0,0.4460048]
[1745665077835,0.5825043,94352.0,94351.0,0.4460048]
[1745665078035,0.9433043,94352.0,94351.0,0.4460048]
[1745665081235,0.9433043,94352.0,94351.0,0.2780048]
[1745665083328,0.7008,94352.0,94351.0,0.2780048]
[1745665083530,0.9127043,94352.0,94351.0,0.2780048]
[1745665084140,0.9127043,94352.0,94351.0,0.4460048]
[1745665087039,0.211929,94341.0,94340.0,0.21298639]
[1745665087239,0.211929,94341.0,94340.0,0.27568639]
[1745665087541,0.551929,94341.0,94340.0,0.27568639]
[1745665088338,0.321929,94341.0,94340.0,0.27568639]
[1745665088535,0.551929,94341.0,94340.0,0.27568639]
[1745665089130,0.551929,94341.0,94340.0,0.44368639]
[1745665089350,0.551929,94341.0,94340.0,0.44568639]
[1745665089639,0.581929,94341.0,94340.0,0.44568639]
[1745665090138,0.581929,94341.0,94340.0,0.27768639]
[1745665090344,0.311929,94341.0,94340.0,0.27768639]
[1745665092245,0.2119358,94338.0,94337.0,1e-08]
[1745665092439,0.8827358,94338.0,94337.0,1e-08]
[1745665092941,0.8936844,94338.0,94337.0,1e-08]
[1745665093142,1.0616844,94338.0,94337.0,1e-08]
[1745665093543,1.0616844,94338.0,94337.0,0.00200001]
[1745665093940,1.0507358,94338.0,94337.0,0.00200001]
[1745665095138,0.8827358,94338.0,94337.0,0.00200001]
[1745665096644,0.5865358,94338.0,94337.0,0.00200001]
[1745665096845,1.3081358,94338.0,94337.0,0.00200001]
[1745665098244,1.31903799,94338.0,94337.0,0.00200001]
[1745665098643,1.3081358,94338.0,94337.0,0.00200001]
[1745665100248,1.66413981,94338.0,94337.0,0.00200001]
[1745665100449,0.2119964,94311.0,94300.0,0.26227391]
[1745665100659,0.8827964,94311.0,94310.0,0.21305903]
[1745665100976,0.8827964,94311.0,94310.0,0.00106033]
[1745665101150,0.8827964,94311.0,94310.0,0.38105903]
[1745665101348,0.9150964,94311.0,94310.0,0.16906033]
[1745665101744,0.9150964,94311.0,94310.0,0.38105903]
[1745665102156,1.0830964,94311.0,94310.0,0.22005903]
[1745665102550,1.0830964,94311.0,94310.0,0.22781431]
[1745665103247,0.9150964,94311.0,94310.0,0.22181431]
[1745665106169,0.9150964,94311.0,94310.0,0.00981561]
[1745665106570,0.9475964,94311.0,94310.0,0.00981561]
[1745665107075,1.1155964,94311.0,94310.0,0.00981561]
[1745665108171,0.9475964,94311.0,94310.0,0.00981561]
[1745665108477,0.2120324,94295.0,94286.0,0.01117084]
[1745665108674,0.8828324,94295.0,94291.0,0.0530101]
[1745665108876,0.8828324,94295.0,94288.0,0.0530116]
[1745665109063,0.0530096,94293.0,94290.0,0.2650498]
[1745665109264,0.2120414,94291.0,94290.0,0.2650498]
[1745665109570,0.5320414,94291.0,94290.0,0.2650498]
[1745665109872,0.5320414,94291.0,94290.0,0.27285316]
[1745665110263,0.5340414,94291.0,94290.0,0.21984696]
[1745665110470,0.5656414,94291.0,94290.0,0.2120436]
[1745665110876,0.5340414,94291.0,94290.0,0.2120436]
[1745665113980,0.5340414,94291.0,94290.0,0.22018347]
[1745665116773,0.8948414,94291.0,94290.0,0.22018347]
[1745665117365,0.9250414,94291.0,94290.0,0.22018347]
[1745665117767,0.9250414,94291.0,94290.0,0.25318347]
[1745665118173,0.9250414,94291.0,94290.0,0.42118347]
[1745665123083,0.9250414,94291.0,94290.0,0.25318347]
[1745665124385,0.5642414,94291.0,94290.0,0.25318347]
[1745665124578,0.9250414,94291.0,94290.0,0.25318347]
[1745665129182,0.9250414,94291.0,94290.0,0.00813987]
[1745665129380,0.2120481,94289.0,94288.0,0.0530116]
[1745665129580,0.5120481,94289.0,94288.0,0.2120481]
[1745665129775,0.5759481,94289.0,94288.0,0.2120481]
[1745665130178,0.7439481,94289.0,94288.0,0.2120481]
[1745665131085,0.053012,94288.0,94281.0,0.033]
[1745665131284,0.2120616,94283.0,94282.0,0.26507]
[1745665131476,0.9228616,94283.0,94282.0,0.26507]
[1745665132078,0.9842616,94283.0,94282.0,0.26507]
[1745665132881,0.6234616,94283.0,94282.0,0.26507]
[1745665133082,0.9852616,94283.0,94282.0,0.26507]
[1745665133275,1.0382792,94283.0,94282.0,0.2120616]
[1745665134175,1.2062792,94283.0,94282.0,0.2120616]
[1745665135184,1.0382792,94283.0,94282.0,0.2120616]
[1745665139191,1.2062792,94283.0,94282.0,0.2120616]
[1745665140189,1.0382792,94283.0,94282.0,0.2120616]
[1745665140905,0.2120639,94281.0,94280.0,0.21312676]
[1745665141092,0.5320639,94281.0,94280.0,0.21312676]
[1745665141493,0.5320639,94281.0,94280.0,0.22088695]
[1745665142090,0.7000639,94281.0,94280.0,0.22088695]
[1745665143101,1.0608639,94281.0,94280.0,0.22088695]
[1745665144189,0.8928639,94281.0,94280.0,0.00882085]
[1745665144386,0.8928639,94281.0,94280.0,0.00106066]
[1745665144586,0.6808,94281.0,94280.0,0.22094583]
[1745665144798,0.4508,94281.0,94280.0,0.22094583]
[1745665145190,0.4508,94281.0,94280.0,0.45214583]